fUSD/lending_fUSD_20260517
["ID","MTS","AMOUNT","RATE_DAILY","PERIOD"]
[422449478,1778959853000,-330.28064784,0.0003203,7]
[422449450,1778959853000,-650.0429343,0.00031458,7]
[422449466,1778959853000,-399.82608225,0.00031549,2]
[422449449,1778959853000,-159.7360125,0.00031458,7]
[422449423,1778959853000,-286.3473979,0.00031426,7]
[422449451,1778959853000,-469.58749624,0.00031458,7]
[422449418,1778959853000,-310.2013237,0.00031426,2]
[422449419,1778959853000,-465.4574389,0.00031426,7]
[422449424,1778959853000,-251.58295753,0.00031426,7]
[422449426,1778959853000,-211.25102185,0.00031426,7]
[422449425,1778959853000,-209.92788924,0.00031426,7]
[422449420,1778959853000,-515.9239676,0.00031426,7]
[422449422,1778959853000,-608.04601657,0.00031426,7]
[422449421,1778959853000,-242.68222151,0.00031426,7]
[422449438,1778959853000,-224.11792317,0.00031426,7]
[422449428,1778959853000,-305.54400735,0.00031426,7]
[422449439,1778959853000,-167.09989649,0.00031426,7]
[422449432,1778959853000,-229.23651733,0.00031426,7]
[422449431,1778959853000,-247.76903023,0.00031426,7]
[422449446,1778959853000,-236.8125002,0.00031458,7]
[422449430,1778959853000,-150.89865638,0.00031426,7]
[422449427,1778959853000,-473.40770626,0.00031426,7]
[422449435,1778959853000,-483.218888,0.00031426,7]
[422449433,1778959853000,-364.00205946,0.00031426,7]
[422449436,1778959853000,-495.45404042,0.00031426,7]
[422449437,1778959853000,-261.88337364,0.00031426,7]
[422449434,1778959853000,-446.31259623,0.00031426,2]
[422449440,1778959853000,-20177.09059595,0.0003143,4]
[422449442,1778959853000,-372.2490351,0.00031458,7]
[422449441,1778959853000,-211.23869567,0.00031458,7]
[422449443,1778959853000,-368.52325506,0.00031458,7]
[422449445,1778959853000,-227.10888297,0.00031458,7]
[422449452,1778959853000,-601.74097411,0.00031458,7]
[422449444,1778959853000,-555.186099,0.00031458,2]
[422449429,1778959853000,-167.06157218,0.00031426,2]
[422449477,1778959853000,-158.109826,0.0003203,7]
[422449488,1778959853000,-451.17179905,0.0003203,7]
[422449490,1778959853000,-428.31015915,0.0003203,7]
[422449516,1778959853000,-458.47303466,0.0003203,7]
[422449515,1778959853000,-495.53806045,0.0003203,7]
[422449524,1778959853000,-334.19979297,0.0003203,7]
[422449526,1778959853000,-200.0,0.00032055,2]
[422449525,1778959853000,-500.0,0.00032042,120]
[422449520,1778959853000,-743.18106063,0.0003203,7]
[422449523,1778959853000,-226.89369012,0.0003203,7]
[422449517,1778959853000,-546.00308918,0.0003203,7]
[422449522,1778959853000,-448.23584633,0.0003203,7]
[422449518,1778959853000,-669.46889435,0.0003203,2]
[422449521,1778959853000,-523.76674727,0.0003203,7]
[422449519,1778959853000,-644.29185066,0.0003203,7]
[422449528,1778959853000,-238.9517352,0.00032062,7]
[422449509,1778959853000,-419.85577847,0.0003203,7]
[422449538,1778959853000,-477.90347041,0.00032062,7]
[422449529,1778959853000,-558.37355264,0.00032062,7]
[422449531,1778959853000,-216.35884091,0.00032062,7]
[422449536,1778959853000,-473.6250004,0.00032062,7]
[422449535,1778959853000,-454.21776595,0.00032062,7]
[422449537,1778959853000,-411.25833501,0.00032062,7]
[422449533,1778959853000,-740.248132,0.00032062,2]
[422449530,1778959853000,-552.78488259,0.00032062,7]
[422449532,1778959853000,-240.93886409,0.00032062,7]
[422449534,1778959853000,-234.89448455,0.00032062,7]
[422449489,1778959853000,-371.49257103,0.0003203,7]
[422449539,1778959853000,-213.35889344,0.00032062,7]
[422449541,1778959853000,-329.49937297,0.00032062,7]
[422449542,1778959853000,-335.66322435,0.00032062,7]
[422449527,1778959853000,-422.47739135,0.00032062,7]
[422449512,1778959853000,-458.31601102,0.0003203,7]
[422449540,1778959853000,-394.10716521,0.00032062,7]
[422449507,1778959853000,-185.52709223,0.0003203,7]
[422449511,1778959853000,-710.11155939,0.0003203,7]
[422449480,1778959853000,-211.15253257,0.0003203,7]
[422449479,1778959853000,-607.97102546,0.0003203,7]
[422449482,1778959853000,-1196.15889546,0.0003203,7]
[422449481,1778959853000,-601.15046865,0.0003203,7]
[422449483,1778959853000,-223.26412452,0.0003203,7]
[422449485,1778959853000,-699.06913338,0.0003203,7]
[422449486,1778959853000,-406.92350897,0.0003203,7]
[422449487,1778959853000,-592.09033794,0.0003203,7]
[422449492,1778959853000,-506.19743272,0.0003203,7]
[422449493,1778959853000,-240.31669485,0.0003203,7]
[422449495,1778959853000,-178.19889342,0.0003203,7]
[422449494,1778959853000,-433.76213694,0.0003203,7]
[422449491,1778959853000,-601.93350488,0.0003203,7]
[422449484,1778959853000,-545.21306083,0.0003203,7]
[422449498,1778959853000,-698.18615836,0.0003203,7]
[422449496,1778959853000,-683.69297108,0.0003203,7]
[422449505,1778959853000,-503.16591506,0.0003203,7]
[422449514,1778959853000,-301.79731275,0.0003203,7]
[422449513,1778959853000,-334.12314435,0.0003203,2]
[422449504,1778959853000,-228.0564765,0.0003203,7]
[422449506,1778959853000,-297.43435867,0.0003203,7]
[422449508,1778959853000,-158.14292892,0.0003203,7]
[422449503,1778959853000,-181.83867802,0.0003203,7]
[422449497,1778959853000,-465.30198556,0.0003203,2]
[422449502,1778959853000,-572.6947958,0.0003203,7]
[422449510,1778959853000,-422.5020437,0.0003203,7]
[422449500,1778959853000,-810.72802209,0.0003203,7]
[422449499,1778959853000,-687.89862347,0.0003203,7]
[422449501,1778959853000,-485.36444302,0.0003203,7]
[422449575,1778959854000,-189.0,0.00032125,30]
[422449581,1778959854000,-326.0,0.00032149,30]
[422449566,1778959854000,-481.87772817,0.00032062,7]
[422449598,1778959854000,-859.87327933,0.00032633,7]
[422449570,1778959854000,-563.07130214,0.0003207,5]
[422449578,1778959854000,-190.0,0.00032145,30]
[422449576,1778959854000,-156.0,0.00032125,30]
[422449587,1778959854000,-1223.0,0.00032522,2]
[422449579,1778959854000,-151.0,0.00032145,30]
[422449582,1778959854000,-152.0,0.00032149,30]
[422449580,1778959854000,-156.0,0.00032145,30]
[422449577,1778959854000,-619.0,0.00032145,30]
[422449599,1778959854000,-805.36481333,0.00032633,7]
[422449584,1778959854000,-908.48740076,0.000323,2]
[422449583,1778959854000,-178.1,0.0003221,5]
[422449586,1778959854000,-1270.0,0.00032522,2]
[422449588,1778959854000,-1354.0,0.00032522,2]
[422449590,1778959854000,-150.0,0.00032562,2]
[422449591,1778959854000,-400.019963,0.00032602,2]
[422449597,1778959854000,-854.61621385,0.00032633,7]
[422449592,1778959854000,-400.019963,0.00032602,2]
[422449595,1778959854000,-1495.19861933,0.00032633,7]
[422449596,1778959854000,-752.4168811,0.00032633,7]
[422449567,1778959854000,-498.68552696,0.00032062,7]
[422449585,1778959854000,-2090.84568004,0.00032368,2]
[422449564,1778959854000,-200.82589408,0.00032062,7]
[422449557,1778959854000,-229.09579216,0.00032062,7]
[422449569,1778959854000,-479.08485849,0.0003207,5]
[422449543,1778959854000,-319.47202499,0.00032062,7]
[422449544,1778959854000,-866.7239124,0.00032062,7]
[422449545,1778959854000,-168.45863393,0.00032062,2]
[422449546,1778959854000,-164.64211191,0.00032062,2]
[422449547,1778959854000,-182.77276286,0.00032062,7]
[422449549,1778959854000,-280.69460849,0.00032062,7]
[422449548,1778959854000,-795.14419741,0.00032062,7]
[422449550,1778959854000,-345.51135963,0.00032062,7]
[422449551,1778959854000,-272.47963967,0.00032062,7]
[422449552,1778959854000,-347.68392629,0.00032062,7]
[422449556,1778959854000,-527.81299823,0.00032062,2]
[422449572,1778959854000,-582.0,0.00032118,30]
[422449558,1778959854000,-381.22812455,0.00032062,7]
[422449559,1778959854000,-737.29988893,0.00032062,7]
[422449553,1778959854000,-704.38124436,0.00032062,7]
[422449562,1778959854000,-382.98318061,0.00032062,7]
[422449555,1778959854000,-787.1857285,0.00032062,7]
[422449560,1778959854000,-377.59928953,0.00032062,7]
[422449561,1778959854000,-432.71768182,0.00032062,7]
[422449563,1778959854000,-745.32400628,0.00032062,7]
[422449565,1778959854000,-743.1409194,0.00032062,7]
[422449574,1778959854000,-157.0,0.00032118,30]
[422449573,1778959854000,-152.0,0.00032118,30]
[422449568,1778959854000,-513.60996447,0.00032062,7]
[422449554,1778959854000,-802.32129881,0.00032062,7]
[422449594,1778959854000,-751.43808581,0.00032633,7]
[422449571,1778959854000,-451.0,0.00032118,30]
[422449600,1778959854000,-925.31016501,0.00032666,2]
[422449627,1778959854000,-350.0,0.00033014,5]
[422449633,1778959854000,-189.0,0.00033125,30]
[422449634,1778959854000,-156.0,0.00033125,30]
[422449635,1778959854000,-619.0,0.00033145,30]
[422449637,1778959854000,-151.0,0.00033145,30]
[422449631,1778959854000,-152.0,0.00033118,30]
[422449636,1778959854000,-190.0,0.00033145,30]
[422449630,1778959854000,-582.0,0.00033118,30]
[422449632,1778959854000,-157.0,0.00033118,30]
[422449651,1778959854000,-93821.468165,0.00033546,2]
[422449639,1778959854000,-326.0,0.00033149,30]
[422449641,1778959854000,-4962.82,0.00033466,2]
[422449629,1778959854000,-451.0,0.00033118,30]
[422449640,1778959854000,-152.0,0.00033149,30]
[422449642,1778959854000,-1857.33,0.00033466,2]
[422449645,1778959854000,-902.90025731,0.00033539,7]
[422449643,1778959854000,-298.15,0.00033466,2]
[422449644,1778959854000,-1794.23834319,0.00033539,7]
[422449646,1778959854000,-1025.53945662,0.00033539,7]
[422449648,1778959854000,-43486.8265791,0.00033543,2]
[422449649,1778959854000,-59010.6142575,0.00033546,2]
[422449647,1778959854000,-966.43777599,0.00033539,7]
[422449652,1778959854000,-1110.37219801,0.00033573,2]
[422449654,1778959854000,-1192.71629612,0.00033573,7]
[422449653,1778959854000,-1300.0858686,0.00033573,7]
[422449593,1778959854000,-595.2104426,0.00032602,2]
[422449650,1778959854000,-17728.0777619,0.00033546,2]
[422449638,1778959854000,-156.0,0.00033145,30]
[422449589,1778959854000,-625.0,0.00032522,2]
[422449624,1778959854000,-52156.22565831,0.00033,2]
[422449601,1778959854000,-1083.4048905,0.00032666,7]
[422449602,1778959854000,-993.93024676,0.00032666,7]
[422449603,1778959854000,-983.98216063,0.00032666,7]
[422449604,1778959854000,-921.62486117,0.00032666,7]
[422449613,1778959854000,-500.0,0.00032877,2]
[422449612,1778959854000,-500.0,0.00032877,2]
[422449605,1778959854000,-931.65500785,0.00032666,7]
[422449628,1778959854000,-271.0,0.00033076,2]
[422449607,1778959854000,-4909.48004753,0.000328,2]
[422449608,1778959854000,-1002.08,0.00032877,2]
[422449609,1778959854000,-350.02,0.00032877,2]
[422449611,1778959854000,-1000.0,0.00032877,120]
[422449606,1778959854000,-928.92614925,0.00032666,7]
[422449615,1778959854000,-500.0,0.00032877,2]
[422449610,1778959854000,-523.0,0.00032877,2]
[422449623,1778959854000,-163.87639104,0.00033,120]
[422449621,1778959854000,-727.23,0.000329,30]
[422449619,1778959854000,-1162.8560035,0.00032877,30]
[422449618,1778959854000,-500.0,0.00032877,2]
[422449622,1778959854000,-165.43087272,0.00033,120]
[422449625,1778959854000,-37975.79625586,0.00033,3]
[422449617,1778959854000,-500.0,0.00032877,2]
[422449616,1778959854000,-414.78489166,0.00032877,2]
[422449626,1778959854000,-571.588399,0.00033,14]
[422449614,1778959854000,-500.0,0.00032877,2]
[422449620,1778959854000,-290.13,0.000329,120]
[422449679,1778959855000,-981.12540329,0.00034246,120]
[422449680,1778959855000,-1000.0,0.00034246,120]
[422449689,1778959855000,-500.0,0.00034253,3]
[422449678,1778959855000,-150.0,0.0003419,2]
[422449688,1778959855000,-483.1,0.00034247,30]
[422449684,1778959855000,-1000.0,0.00034246,120]
[422449681,1778959855000,-1000.0,0.00034246,120]
[422449685,1778959855000,-500.0,0.00034246,3]
[422449690,1778959855000,-500.0,0.00034253,3]
[422449686,1778959855000,-500.0,0.00034246,3]
[422449683,1778959855000,-1000.0,0.00034246,120]
[422449687,1778959855000,-1000.0,0.00034247,120]
[422449691,1778959855000,-391.58758982,0.00034253,3]
[422449701,1778959855000,-600.0,0.00034278,60]
[422449692,1778959855000,-391.58758983,0.00034253,3]
[422449694,1778959855000,-600.0,0.00034278,60]
[422449675,1778959855000,-326.0,0.00034149,30]
[422449682,1778959855000,-1000.0,0.00034246,120]
[422449673,1778959855000,-151.0,0.00034145,30]
[422449656,1778959855000,-1117.98600942,0.00033573,7]
[422449674,1778959855000,-156.0,0.00034145,30]
[422449655,1778959855000,-1180.77859275,0.00033573,7]
[422449661,1778959855000,-500.0,0.00033931,120]
[422449662,1778959855000,-350.0,0.00033973,5]
[422449659,1778959855000,-163.87639104,0.000339,120]
[422449664,1778959855000,-180.0,0.00034,120]
[422449660,1778959855000,-501.118191,0.00033931,120]
[422449693,1778959855000,-600.0,0.00034278,60]
[422449658,1778959855000,-165.43087272,0.000339,120]
[422449671,1778959855000,-619.0,0.00034145,30]
[422449657,1778959855000,-1114.7113791,0.00033573,7]
[422449665,1778959855000,-451.0,0.00034118,30]
[422449666,1778959855000,-582.0,0.00034118,30]
[422449676,1778959855000,-152.0,0.00034149,30]
[422449667,1778959855000,-152.0,0.00034118,30]
[422449669,1778959855000,-189.0,0.00034125,30]
[422449670,1778959855000,-156.0,0.00034125,30]
[422449677,1778959855000,-178.1,0.00034182,7]
[422449672,1778959855000,-190.0,0.00034145,30]
[422449663,1778959855000,-200.0,0.00034,120]
[422449695,1778959855000,-600.0,0.00034278,60]
[422449668,1778959855000,-157.0,0.00034118,30]
[422449699,1778959855000,-600.0,0.00034278,60]
[422449721,1778959855000,-3543.0,0.000346,2]
[422449720,1778959855000,-217.3,0.00034521,120]
[422449719,1778959855000,-81935.0,0.000345,2]
[422449716,1778959855000,-600.0,0.00034278,60]
[422449737,1778959855000,120.0,0.00011916,7]
[422449728,1778959855000,-350.0,0.00034931,5]
[422449730,1778959855000,-1516.7668467,0.00034932,7]
[422449729,1778959855000,-1295.43423101,0.00034932,2]
[422449718,1778959855000,-1154.86196114,0.00034481,2]
[422449727,1778959855000,-1127.51073866,0.00034897,7]
[422449731,1778959855000,-1304.31701099,0.00034932,7]
[422449734,1778959855000,-163.87639104,0.00035,120]
[422449736,1778959855000,-145190.80700624,0.00035,4]
[422449735,1778959855000,-167918.01363981,0.00035,4]
[422449732,1778959855000,-1300.49660895,0.00034932,7]
[422449733,1778959855000,-292.5,0.00034975,2]
[422449738,1778959855000,32.0,0.00011916,7]
[422449697,1778959855000,-600.0,0.00034278,60]
[422449726,1778959855000,-1196.46269939,0.00034897,7]
[422449717,1778959855000,-664.1382359,0.00034278,60]
[422449725,1778959855000,-2093.27806706,0.00034897,7]
[422449713,1778959855000,-600.0,0.00034278,60]
[422449698,1778959855000,-600.0,0.00034278,60]
[422449696,1778959855000,-600.0,0.00034278,60]
[422449715,1778959855000,-600.0,0.00034278,60]
[422449702,1778959855000,-600.0,0.00034278,60]
[422449704,1778959855000,-600.0,0.00034278,60]
[422449705,1778959855000,-600.0,0.00034278,60]
[422449703,1778959855000,-600.0,0.00034278,60]
[422449706,1778959855000,-600.0,0.00034278,60]
[422449707,1778959855000,-600.0,0.00034278,60]
[422449700,1778959855000,-600.0,0.00034278,60]
[422449708,1778959855000,-600.0,0.00034278,60]
[422449712,1778959855000,-600.0,0.00034278,60]
[422449710,1778959855000,-600.0,0.00034278,60]
[422449724,1778959855000,-174.64,0.00034882,120]
[422449711,1778959855000,-600.0,0.00034278,60]
[422449723,1778959855000,-1500.0,0.00034795,2]
[422449714,1778959855000,-600.0,0.00034278,60]
[422449722,1778959855000,-592.91142502,0.00034641,3]
[422449709,1778959855000,-600.0,0.00034278,60]
[422449739,1778959856000,663.86,0.00028695,120]
[422449740,1778959876000,-1000.0,0.000156,2]
[422449741,1778959883000,2500.0,0.00027359,120]
[422449742,1778959934000,500.0,0.00010013,2]
[422449745,1778960146000,152.0,0.00011919,7]
[422449746,1778960176000,174.98,0.00026922,120]
[422449749,1778960423000,680.15,0.0003013,120]
[422449750,1778960489000,34959.57603969,0.000301,120]
[422449752,1778960896000,156.65,7.921e-05,2]
[422449753,1778960897000,156.65,9.823e-05,2]
[422449756,1778961031000,-156.65,0.00011726,2]
[422449758,1778961031000,-173.87,0.00012566,2]
[422449761,1778961031000,-156.65,0.00013628,2]
[422449762,1778961031000,-215.03962261,0.00013755,2]
[422449759,1778961031000,-250.0,0.00012655,2]
[422449757,1778961031000,-250.0,0.00012225,2]
[422449763,1778961031000,-250.0,0.00014,2]
[422449766,1778961031000,-1200.0,0.00014484,2]
[422449764,1778961031000,-226.74,0.00014484,2]
[422449765,1778961031000,-299.99,0.00014484,2]
[422449767,1778961031000,-300.0,0.00014484,2]
[422449768,1778961031000,-150.99,0.00014485,2]
[422449760,1778961031000,-250.0,0.00013216,2]
[422449830,1778961032000,-150.0,0.00018492,2]
[422449826,1778961032000,-230.66891351,0.00017939,7]
[422449828,1778961032000,-2319.72410669,0.00018151,2]
[422449834,1778961032000,-23543.3781011,0.00018494,2]
[422449836,1778961032000,-200.0,0.00018589,2]
[422449814,1778961032000,-3680.0,0.00016953,2]
[422449816,1778961032000,-2157.14243826,0.00017055,2]
[422449818,1778961032000,-3680.0,0.00017348,2]
[422449833,1778961032000,-150.0,0.00018492,2]
[422449812,1778961032000,-3680.0,0.00016559,2]
[422449822,1778961032000,-2236.95670848,0.00017603,2]
[422449824,1778961032000,-2000.0,0.00017817,2]
[422449838,1778961032000,-5000.0,0.00018602,2]
[422449846,1778961032000,-500.0,0.00018701,2]
[422449842,1778961032000,-2405.55389864,0.00018699,2]
[422449820,1778961032000,-5082.60953926,0.00017599,2]
[422449844,1778961032000,-15873.04222987,0.000187,2]
[422449848,1778961032000,-500.0,0.00018701,2]
[422449850,1778961032000,-500.0,0.00018701,2]
[422449852,1778961032000,-500.0,0.00018701,2]
[422449857,1778961032000,-500.0,0.00018701,2]
[422449856,1778961032000,-500.0,0.00018701,2]
[422449854,1778961032000,-500.0,0.00018701,2]
[422449859,1778961032000,-500.0,0.00018701,2]
[422449871,1778961032000,-500.0,0.00018701,2]
[422449863,1778961032000,-500.0,0.00018701,2]
[422449869,1778961032000,-500.0,0.00018701,2]
[422449840,1778961032000,-2500.0,0.00018602,2]
[422449806,1778961032000,-151.0,0.00016507,2]
[422449802,1778961032000,-263.39,0.00016438,2]
[422449810,1778961032000,-2080.17592889,0.00016507,2]
[422449865,1778961032000,-500.0,0.00018701,2]
[422449770,1778961032000,-9999.99,0.00014485,2]
[422449772,1778961032000,-150.0,0.00014509,2]
[422449769,1778961032000,-999.99,0.00014485,2]
[422449771,1778961032000,-9999.99,0.00014485,2]
[422449773,1778961032000,-160.0,0.00014539,2]
[422449774,1778961032000,-208.44072055,0.00014539,2]
[422449775,1778961032000,-54255.80280025,0.0001454,2]
[422449777,1778961032000,-166.66,0.00015149,2]
[422449776,1778961032000,-166.66,0.00014836,2]
[422449778,1778961032000,-166.66,0.00015461,2]
[422449779,1778961032000,-150.0,0.00015474,2]
[422449780,1778961032000,-156.65,0.00015531,2]
[422449781,1778961032000,-150.0,0.00015604,2]
[422449783,1778961032000,-3680.0,0.0001577,2]
[422449782,1778961032000,-346.01837026,0.00015697,2]
[422449785,1778961032000,-160.93,0.00015789,2]
[422449784,1778961032000,-166.66,0.00015773,2]
[422449786,1778961032000,-2000.0,0.00015837,2]
[422449787,1778961032000,-200.0,0.00015854,2]
[422449789,1778961032000,-300.0,0.00016,2]
[422449791,1778961032000,-228.8988,0.00016065,2]
[422449793,1778961032000,-6801.3071,0.00016065,2]
[422449796,1778961032000,-166.66,0.00016086,2]
[422449798,1778961032000,-3680.0,0.00016165,2]
[422449808,1778961032000,-230.00310061,0.00016507,2]
[422449800,1778961032000,-166.66,0.00016398,2]
[422449804,1778961032000,-151.0,0.00016507,2]
[422449861,1778961032000,-500.0,0.00018701,2]
[422449953,1778961032000,-175.6284098,0.00018701,2]
[422449876,1778961032000,-500.0,0.00018701,2]
[422449947,1778961032000,-500.0,0.00018701,2]
[422449948,1778961032000,-500.0,0.00018701,2]
[422449936,1778961032000,-500.0,0.00018701,2]
[422449930,1778961032000,-500.0,0.00018701,2]
[422449940,1778961032000,-500.0,0.00018701,2]
[422449950,1778961032000,-214.40717226,0.00018701,2]
[422449949,1778961032000,-185.59282774,0.00018701,2]
[422449952,1778961032000,-500.0,0.00018701,2]
[422449951,1778961032000,-500.0,0.00018701,2]
[422449954,1778961032000,-500.0,0.00018701,2]
[422449956,1778961032000,-175.6284098,0.00018701,2]
[422449955,1778961032000,-500.0,0.00018701,2]
[422449958,1778961032000,-500.0,0.00018701,2]
[422449957,1778961032000,-500.0,0.00018701,2]
[422449959,1778961032000,-175.6284098,0.00018701,2]
[422449961,1778961032000,-500.0,0.00018701,2]
[422449960,1778961032000,-500.0,0.00018701,2]
[422449963,1778961032000,-500.0,0.00018701,2]
[422449962,1778961032000,-175.6284098,0.00018701,2]
[422449964,1778961032000,-500.0,0.00018701,2]
[422449867,1778961032000,-500.0,0.00018701,2]
[422449966,1778961032000,-500.0,0.00018701,2]
[422449965,1778961032000,-175.6284098,0.00018701,2]
[422449969,1778961032000,-500.0,0.00018701,2]
[422449968,1778961032000,-175.6284098,0.00018701,2]
[422449970,1778961032000,-500.0,0.00018701,2]
[422449971,1778961032000,-175.6284098,0.00018701,2]
[422449943,1778961032000,-500.0,0.00018701,2]
[422449934,1778961032000,-500.0,0.00018701,2]
[422449967,1778961032000,-500.0,0.00018701,2]
[422449945,1778961032000,-600.0,0.00018701,2]
[422449941,1778961032000,-500.0,0.00018701,2]
[422449878,1778961032000,-500.0,0.00018701,2]
[422449882,1778961032000,-500.0,0.00018701,2]
[422449880,1778961032000,-500.0,0.00018701,2]
[422449886,1778961032000,-422.20777397,0.00018701,2]
[422449889,1778961032000,-500.0,0.00018701,2]
[422449891,1778961032000,-500.0,0.00018701,2]
[422449893,1778961032000,-500.0,0.00018701,2]
[422449895,1778961032000,-500.0,0.00018701,2]
[422449898,1778961032000,-500.0,0.00018701,2]
[422449902,1778961032000,-500.0,0.00018701,2]
[422449906,1778961032000,-500.0,0.00018701,2]
[422449900,1778961032000,-500.0,0.00018701,2]
[422449912,1778961032000,-280.65915323,0.00018701,2]
[422449873,1778961032000,-500.0,0.00018701,2]
[422449908,1778961032000,-500.0,0.00018701,2]
[422449910,1778961032000,-500.0,0.00018701,2]
[422449932,1778961032000,-500.0,0.00018701,2]
[422449928,1778961032000,-500.0,0.00018701,2]
[422449938,1778961032000,-500.0,0.00018701,2]
[422449924,1778961032000,-500.0,0.00018701,2]
[422449922,1778961032000,-500.0,0.00018701,2]
[422449926,1778961032000,-500.0,0.00018701,2]
[422449918,1778961032000,-500.0,0.00018701,2]
[422449916,1778961032000,-500.0,0.00018701,2]
[422449884,1778961032000,-500.0,0.00018701,2]
[422449914,1778961032000,-219.34084677,0.00018701,2]
[422449904,1778961032000,-500.0,0.00018701,2]
[422449920,1778961032000,-500.0,0.00018701,2]
[422449987,1778961033000,-500.0,0.00018701,2]
[422449985,1778961033000,-500.0,0.00018701,2]
[422449988,1778961033000,-500.0,0.00018701,2]
[422449986,1778961033000,-175.6284098,0.00018701,2]
[422449984,1778961033000,-500.0,0.00018701,2]
[422449983,1778961033000,-175.6284098,0.00018701,2]
[422449980,1778961033000,-175.6284098,0.00018701,2]
[422449982,1778961033000,-500.0,0.00018701,2]
[422449974,1778961033000,-175.6284098,0.00018701,2]
[422449978,1778961033000,-500.0,0.00018701,2]
[422449977,1778961033000,-175.6284098,0.00018701,2]
[422449979,1778961033000,-500.0,0.00018701,2]
[422449976,1778961033000,-500.0,0.00018701,2]
[422449975,1778961033000,-500.0,0.00018701,2]
[422449972,1778961033000,-500.0,0.00018701,2]
[422449973,1778961033000,-500.0,0.00018701,2]
[422449989,1778961033000,-175.6284098,0.00018701,2]
[422449981,1778961033000,-500.0,0.00018701,2]
[422449990,1778961033000,-500.0,0.00018701,2]
[422449999,1778961033000,-500.0,0.00018702,2]
[422449991,1778961033000,-500.0,0.00018701,2]
[422450010,1778961033000,-1849.66319346,0.00018702,2]
[422450009,1778961033000,-4190.94833968,0.00018702,2]
[422450008,1778961033000,-1336.88092673,0.00018702,2]
[422449992,1778961033000,-175.6284098,0.00018701,2]
[422450007,1778961033000,-397.84647269,0.00018702,2]
[422450005,1778961033000,-1160.87387984,0.00018702,2]
[422450003,1778961033000,-15233.8351296,0.00018702,2]
[422450004,1778961033000,-510085.86459563,0.00018702,2]
[422450006,1778961033000,-606.0,0.00018702,2]
[422450001,1778961033000,-58410.368818,0.00018702,2]
[422450002,1778961033000,-11562.84282832,0.00018702,2]
[422450000,1778961033000,-382.66914498,0.00018702,2]
[422449996,1778961033000,-500.0,0.00018702,2]
[422449997,1778961033000,-500.0,0.00018702,2]
[422449993,1778961033000,-500.77055595,0.00018701,2]
[422449995,1778961033000,-500.0,0.00018702,2]
[422449994,1778961033000,-500.0,0.00018702,2]
[422449998,1778961033000,-500.0,0.00018702,2]
[422450011,1778961035000,214.53632942,0.00030136,120]
[422450026,1778961038000,-2992.09560657,0.00018702,2]
[422450025,1778961038000,-3129.14452436,0.00018702,2]
[422450023,1778961038000,-1284.69103545,0.00018702,2]
[422450028,1778961038000,-3494.11304809,0.00018702,2]
[422450021,1778961038000,-796.01445531,0.00018702,2]
[422450022,1778961038000,-2221.88886235,0.00018702,2]
[422450020,1778961038000,-708.38683977,0.00018702,2]
[422450024,1778961038000,-4272.94066181,0.00018702,2]
[422450029,1778961038000,-2878.83944146,0.00018702,2]
[422450027,1778961038000,-86635.9199613,0.00018702,2]
[422450039,1778961038000,-2484.84122466,0.00018702,2]
[422450038,1778961038000,-874.22355268,0.00018702,2]
[422450035,1778961038000,-730.89448091,0.00018702,2]
[422450037,1778961038000,-691.58645727,0.00018702,2]
[422450036,1778961038000,-1089.19505249,0.00018702,2]
[422450031,1778961038000,-315.0,0.00018702,2]
[422450032,1778961038000,-4564.38736795,0.00018702,2]
[422450033,1778961038000,-748.26893567,0.00018702,2]
[422450030,1778961038000,-744.3463817,0.00018702,2]